bitfinex/quotes_BTCUSD_20250314
["timestamp","ask_amount","ask_price","bid_price","bid_amount"]
[1741971766953,0.01843902,85031.0,85030.0,0.01776]
[1741971767614,0.01843902,85031.0,85030.0,0.01976]
[1741971767761,0.01843902,85031.0,85030.0,0.01376]
[1741971768177,0.01843902,85031.0,85030.0,0.01476]
[1741971768843,0.01843902,85031.0,85030.0,0.01276]
[1741971769049,0.01843902,85031.0,85030.0,0.01393596]
[1741971769254,0.01843902,85031.0,85030.0,0.01376]
[1741971769456,0.01843902,85031.0,85030.0,0.01176]
[1741971769664,0.01843902,85031.0,85026.0,0.246978]
[1741971769665,0.235225,85025.0,85019.0,0.235239]
[1741971769916,0.235246,85018.0,85011.0,0.011763]
[1741971770130,0.235246,85018.0,85008.0,0.83580766]
[1741971770131,0.011763,85012.0,85008.0,0.14429356]
[1741971770328,0.235259,85013.0,85008.0,0.15605656]
[1741971770550,0.235259,85013.0,85008.0,0.14429356]
[1741971770551,0.235266,85010.0,85008.0,0.14429356]
[1741971770717,0.01844253,85014.0,85008.0,0.00041356]
[1741971770920,0.01844253,85014.0,85010.0,0.235266]
[1741971771121,0.25369953,85014.0,85011.0,0.235263]
[1741971771524,0.01844253,85014.0,85013.0,0.235258]
[1741971771705,0.01844253,85014.0,85011.0,0.235263]
[1741971771908,0.011762,85013.0,85007.0,0.011763]
[1741971772106,0.235261,85012.0,85008.0,0.24068456]
[1741971772348,0.235263,85011.0,85008.0,0.00541356]
[1741971772673,0.235268,85010.0,85008.0,0.00541356]
[1741971772806,0.247031,85010.0,85008.0,0.00041356]
[1741971773037,0.03020453,85014.0,85013.0,0.235258]
[1741971773038,0.01844253,85014.0,85013.0,0.235258]
[1741971773216,0.01844253,85014.0,85012.0,0.235259]
[1741971773555,0.01844253,85014.0,85013.0,0.011762]
[1741971774472,0.01844253,85014.0,85013.0,0.24702]
[1741971776063,7.4e-07,85031.0,85030.0,0.246971]
[1741971777487,7.4e-07,85031.0,85030.0,0.252971]
[1741971777892,7.4e-07,85031.0,85027.0,0.246976]
[1741971777893,7.4e-07,85031.0,85027.0,0.01176]
[1741971778155,7.4e-07,85031.0,85030.0,0.235211]
[1741971778342,7.4e-07,85031.0,85030.0,0.252971]
[1741971778515,7.4e-07,85031.0,85030.0,0.241211]
[1741971778927,0.23520874,85031.0,85030.0,0.006]
[1741971779092,7.4e-07,85031.0,85030.0,0.012]
[1741971779296,7.4e-07,85031.0,85030.0,0.247211]
[1741971779542,7.4e-07,85031.0,85030.0,0.012]
[1741971779740,7.4e-07,85031.0,85030.0,0.245211]
[1741971779941,7.4e-07,85031.0,85030.0,0.256971]
[1741971780734,0.23520874,85031.0,85030.0,0.01]
[1741971780943,7.4e-07,85031.0,85030.0,0.260971]
[1741971781282,7.4e-07,85031.0,85030.0,0.342071]
[1741971781784,7.4e-07,85031.0,85030.0,0.486431]
[1741971781924,7.4e-07,85031.0,85010.0,0.29217926]
[1741971782126,0.3,84981.0,84952.0,0.4146]
[1741971782466,0.05,84950.0,84937.0,0.235467]
[1741971782665,0.011769,84966.0,84922.0,0.0003394]
[1741971782666,0.005,84953.0,84948.0,0.00041422]
[1741971782872,0.005,84953.0,84922.0,0.0003394]
[1741971782873,0.005,84940.0,84922.0,2.2e-07]
[1741971783256,0.297311,84913.0,84912.0,9.7e-07]
[1741971783446,0.297311,84913.0,84867.0,0.011783]
[1741971783447,0.297369,84895.0,84861.0,0.00027722]
[1741971783651,0.005,84894.0,84893.0,0.011779]
[1741971783860,0.005,84894.0,84893.0,0.247368]
[1741971784063,0.005,84894.0,84886.0,0.235608]
[1741971784064,0.01954085,84887.0,84886.0,0.235608]
[1741971784268,0.005,84887.0,84886.0,0.235608]
[1741971784470,0.005,84891.0,84890.0,0.011779]
[1741971784619,0.005,84891.0,84888.0,0.00041463]
[1741971784798,0.005,84889.0,84888.0,0.00041463]
[1741971785151,0.01954085,84889.0,84888.0,0.00041463]
[1741971785782,0.55514185,84889.0,84888.0,0.00041463]
[1741971785950,0.0521,84872.0,84871.0,0.0008]
[1741971786150,0.06664085,84872.0,84871.0,0.0008]
[1741971786353,0.06664085,84872.0,84849.0,0.23571]
[1741971786354,0.005,84862.0,84849.0,0.23571]
[1741971786554,0.01454085,84861.0,84852.0,0.235703]
[1741971786755,0.3,84858.0,84857.0,0.23569]
[1741971786998,0.305,84858.0,84857.0,0.23569]
[1741971787133,0.31954085,84858.0,84857.0,0.23569]
[1741971787544,0.47726208,84867.0,84865.0,0.247451]
[1741971787726,0.0471,84872.0,84865.0,0.247451]
[1741971787727,0.00891682,84892.0,84891.0,0.247375]
[1741971787931,0.17047997,84910.0,84909.0,0.235546]
[1741971788203,0.17047997,84910.0,84905.0,0.235555]
[1741971788635,0.17047997,84910.0,84902.0,0.235563]
[1741971788786,0.17047997,84910.0,84908.0,0.235546]
[1741971788966,0.17047997,84910.0,84904.0,0.235558]
[1741971789167,0.235546,84909.0,84893.0,0.235585]
[1741971789407,0.235546,84909.0,84891.0,0.00041528]
[1741971789408,0.011779,84895.0,84891.0,0.00041528]
[1741971789584,0.47047997,84894.0,84868.0,0.011783]
[1741971789784,0.01454085,84891.0,84882.0,0.235619]
[1741971789985,0.01454085,84889.0,84872.0,0.235648]
[1741971790184,0.01454085,84889.0,84868.0,0.0004155]
[1741971790185,0.01454085,84886.0,84878.0,0.235631]
[1741971790409,0.01454085,84886.0,84884.0,0.235614]
[1741971790610,0.01454085,84886.0,84876.0,0.235637]
[1741971790611,0.17047997,84894.0,84891.0,0.247375]
[1741971790827,0.17047997,84894.0,84893.0,0.011779]
[1741971791055,0.3,84893.0,84891.0,0.235596]
[1741971791332,0.17047997,84894.0,84891.0,0.235596]
[1741971791492,0.17047997,84894.0,84893.0,0.011779]
[1741971791871,0.3,84893.0,84891.0,0.235596]
[1741971792070,0.31454085,84893.0,84890.0,0.235594]
[1741971792310,0.01454085,84892.0,84890.0,0.235594]
[1741971792516,0.01454085,84892.0,84890.0,0.231594]
[1741971792715,0.01454085,84892.0,84876.0,0.011781]
[1741971793536,0.01454085,84893.0,84877.0,0.235633]
[1741971793742,0.01454085,84893.0,84884.0,0.235615]
[1741971793940,0.25013285,84893.0,84879.0,0.235629]
[1741971794138,0.01178,84888.0,84879.0,0.001]
[1741971794460,0.01454085,84887.0,84879.0,0.001]
[1741971794671,0.31454085,84885.0,84879.0,0.001]
[1741971795443,0.01454085,84879.0,84869.0,0.235656]
[1741971795670,0.02632285,84869.0,84854.0,0.011784]
[1741971795873,0.31454085,84869.0,84857.0,0.011784]
[1741971796074,0.31454085,84869.0,84856.0,0.235693]
[1741971796075,0.32632285,84869.0,84856.0,0.235693]
[1741971796311,0.56197985,84869.0,84853.0,0.235699]
[1741971796519,0.56197985,84869.0,84850.0,0.235709]
[1741971796720,0.73245982,84869.0,84842.0,0.011786]
[1741971796937,0.85203485,84869.0,84846.0,0.23572]
[1741971797136,0.85203485,84869.0,84839.0,0.011787]
[1741971797137,4.01893485,84869.0,84840.0,0.235735]
[1741971797323,3.72523485,84869.0,84844.0,0.235724]
[1741971797530,3.73023485,84869.0,84868.0,0.0014155]
[1741971797873,0.3,84836.0,84804.0,0.0127443]
[1741971797996,0.01454085,84835.0,84834.0,0.24754]
[1741971798408,0.46906447,84843.0,84842.0,0.247518]
[1741971798611,0.46906447,84843.0,84836.0,0.011787]
[1741971798612,0.31454085,84842.0,84836.0,0.011787]
[1741971798873,0.31454085,84842.0,84797.0,0.74796]
[1741971798874,0.31454085,84842.0,84832.0,0.247548]
[1741971799079,0.235737,84840.0,84828.0,0.011788]
[1741971799210,0.31454085,84832.0,84819.0,0.011789]
[1741971799416,0.32632885,84832.0,84812.0,0.235813]
[1741971799620,0.32632885,84832.0,84817.0,0.2358]
[1741971799821,0.64327332,84832.0,84817.0,0.01179]
[1741971800013,0.64327332,84832.0,84820.0,0.235791]
[1741971800214,0.64327332,84832.0,84818.0,0.235798]
[1741971800215,0.64319332,84832.0,84818.0,0.235798]
[1741971800556,0.64319332,84832.0,84820.0,0.011789]
[1741971800800,0.64319332,84832.0,84819.0,0.235794]
[1741971800980,0.76276835,84832.0,84831.0,0.00221599]
[1741971801879,5.87322135,84832.0,84831.0,0.00221599]
[1741971802019,5.72550135,84832.0,84831.0,0.00221599]
[1741971802220,4.80894835,84832.0,84831.0,0.00221599]
[1741971802431,1.82897332,84832.0,84831.0,0.00121599]
[1741971802728,1.68129332,84832.0,84831.0,0.00121599]
[1741971802932,0.63120532,84832.0,84831.0,0.00121599]
[1741971803196,0.49539332,84832.0,84831.0,0.00221599]
[1741971803355,0.61496835,84832.0,84831.0,0.00221599]
[1741971803562,0.76256835,84832.0,84831.0,0.00121599]
[1741971803816,0.547626,84805.0,84793.0,0.235866]
[1741971803937,0.547626,84805.0,84791.0,0.0008]
[1741971803938,0.56216685,84805.0,84791.0,0.0008]
[1741971804138,0.56216685,84805.0,84791.0,0.248465]
[1741971804412,0.56216685,84805.0,84794.0,0.2360337]
[1741971804617,0.31454085,84805.0,84795.0,0.011793]
[1741971804821,0.31454085,84805.0,84796.0,0.011793]
[1741971804982,0.31454085,84805.0,84803.0,0.2360087]
[1741971805187,0.31454085,84805.0,84803.0,0.0001697]
[1741971805188,0.39986636,84805.0,84803.0,0.0001697]
[1741971805486,0.39986636,84805.0,84804.0,0.0245353]
[1741971805487,0.31495383,84805.0,84804.0,0.0245353]
[1741971805865,0.31495383,84805.0,84804.0,0.0127443]
[1741971806077,0.30041298,84805.0,84804.0,0.0245353]
[1741971806304,0.30041298,84805.0,84804.0,0.0127443]
[1741971806499,0.30041298,84805.0,84804.0,0.0245353]
[1741971806728,0.00041298,84805.0,84804.0,0.0245353]
[1741971807241,0.00041298,84805.0,84804.0,0.0265353]
[1741971807649,0.00041298,84805.0,84804.0,0.0245353]
[1741971807991,0.00041298,84805.0,84804.0,0.0285353]
[1741971809013,0.00041298,84805.0,84804.0,0.0287052]
[1741971810024,0.00041298,84805.0,84804.0,0.0169142]
[1741971810429,0.00041298,84805.0,84804.0,0.0287052]
[1741971810845,0.00041298,84805.0,84804.0,0.0247052]
[1741971811370,0.00041298,84805.0,84804.0,0.0267052]
[1741971813845,0.01495383,84805.0,84804.0,0.0149142]
[1741971814023,0.01495383,84805.0,84804.0,0.0129142]
[1741971814229,0.00041298,84805.0,84804.0,0.0129142]
[1741971814664,0.00041298,84805.0,84804.0,0.0247052]
[1741971816836,9.8e-07,84805.0,84804.0,0.02588426]
[1741971817020,0.18277352,84843.0,84842.0,0.247518]
[1741971817191,0.3,84842.0,84838.0,0.235743]
[1741971817401,0.16906447,84843.0,84837.0,0.011787]
[1741971817603,0.16906447,84843.0,84842.0,0.247518]
[1741971818363,0.16906447,84843.0,84837.0,0.247532]
[1741971818364,0.16906447,84861.0,84860.0,0.011784]
[1741971818916,0.3,84860.0,84858.0,0.235684]
[1741971819095,0.3,84860.0,84857.0,0.235688]
[1741971819276,0.011785,84847.0,84838.0,0.011787]
[1741971819631,0.31454085,84843.0,84838.0,0.011787]
[1741971819827,0.3,84843.0,84842.0,0.01186859]
[1741971820796,0.31454085,84849.0,84846.0,0.232721]
[1741971820987,0.0003398,84843.0,84842.0,0.24759759]
[1741971821568,0.0003398,84843.0,84842.0,0.24859759]
[1741971821910,0.0003398,84843.0,84842.0,0.00108259]
[1741971822245,0.0003398,84843.0,84842.0,0.01186859]
[1741971823540,0.0003398,84843.0,84824.0,0.011789]
[1741971823541,0.011787,84836.0,84824.0,0.011789]
[1741971823705,0.46906447,84835.0,84834.0,0.247541]
[1741971823907,0.3,84835.0,84834.0,0.247541]
[1741971824109,0.011788,84832.0,84825.0,0.011788]
[1741971824308,0.3,84835.0,84827.0,0.235772]
[1741971824550,0.535752,84835.0,84830.0,0.235764]
[1741971824751,0.3,84835.0,84833.0,0.247543]
[1741971824886,0.01848,84841.0,84840.0,0.011786]
[1741971825090,0.01848,84841.0,84840.0,0.247523]
[1741971825954,0.01848,84841.0,84838.0,0.247529]
[1741971826149,0.011788,84832.0,84825.0,0.014788]
[1741971826353,0.011787,84835.0,84828.0,0.011788]
[1741971826494,0.235752,84835.0,84832.0,0.235759]
[1741971826699,0.235752,84835.0,84831.0,0.235762]
[1741971827143,0.3,84835.0,84832.0,0.235759]
[1741971827396,0.3,84835.0,84833.0,0.235756]
[1741971827732,0.01848,84841.0,84840.0,0.247523]
[1741971828536,0.01848,84841.0,84834.0,0.235754]
[1741971828752,0.247534,84837.0,84833.0,0.236755]
[1741971828956,0.01454085,84837.0,84833.0,0.001]
[1741971829134,0.01454085,84837.0,84836.0,0.235748]
[1741971829341,0.3,84840.0,84839.0,0.23574]
[1741971829739,0.3,84840.0,84839.0,0.247527]
[1741971830004,0.0003398,84843.0,84842.0,0.247518]
[1741971830171,0.0003398,84843.0,84841.0,0.235734]
[1741971830328,0.0003398,84843.0,84842.0,0.247518]
[1741971831340,0.3003398,84843.0,84842.0,0.235732]
[1741971831559,0.3003398,84843.0,84842.0,0.247518]
[1741971832448,0.0003398,84843.0,84842.0,0.247518]
[1741971836106,0.011787,84837.0,84833.0,0.235756]
[1741971836306,0.235737,84840.0,84834.0,0.011787]
[1741971836515,0.23574,84839.0,84833.0,0.011787]
[1741971836717,0.3,84837.0,84834.0,0.235754]
[1741971836920,0.3,84838.0,84837.0,0.247533]
[1741971837519,0.0003398,84843.0,84842.0,0.247518]
[1741971837925,8e-07,84843.0,84842.0,0.247518]
[1741971840014,8e-07,84843.0,84842.0,0.24667]
[1741971840230,7.6e-07,84843.0,84842.0,0.24667]
[1741971840584,7.6e-07,84843.0,84842.0,0.24567]
[1741971840716,7.6e-07,84843.0,84842.0,0.25067]
[1741971841382,0.011783,84866.0,84842.0,0.005]
[1741971841579,0.011783,84866.0,84834.0,0.14944]
[1741971841580,0.01454085,84860.0,84853.0,0.011785]
[1741971841847,0.02632385,84865.0,84862.0,0.235676]
[1741971841848,0.01454085,84865.0,84862.0,0.235676]
[1741971842229,0.01454085,84863.0,84850.0,0.235708]
[1741971842441,0.011783,84868.0,84846.0,0.011786]
[1741971842442,0.235711,84850.0,84846.0,0.23572]
[1741971842580,0.3,84855.0,84851.0,0.011785]
[1741971842786,0.3,84855.0,84854.0,0.247482]
[1741971842981,0.3,84855.0,84851.0,9.239e-05]
[1741971843379,0.3,84855.0,84854.0,0.011784]
[1741971843567,0.3,84855.0,84851.0,9.239e-05]
[1741971843568,0.02632485,84855.0,84851.0,0.23579739]
[1741971843781,0.235704,84852.0,84851.0,9.239e-05]
[1741971843982,0.56202985,84852.0,84851.0,9.239e-05]
[1741971844649,0.89846935,84852.0,84851.0,9.239e-05]
[1741971845066,0.31454085,84841.0,84840.0,0.235737]
[1741971845266,0.31454085,84841.0,84840.0,0.247523]
[1741971845812,0.31770447,84852.0,84851.0,0.247492]
[1741971846017,0.31454085,84851.0,84848.0,0.011785]
[1741971846245,0.31454085,84849.0,84847.0,0.235716]
[1741971846451,0.01454085,84848.0,84845.0,0.235723]
[1741971846672,0.01454085,84848.0,84846.0,0.23572]
[1741971846877,0.01454085,84848.0,84847.0,0.247503]
[1741971847284,0.31454085,84849.0,84848.0,0.2475]
[1741971847489,0.01454085,84849.0,84848.0,0.2475]
[1741971847894,0.011784,84860.0,84848.0,0.2475]
[1741971847895,0.16940427,84869.0,84855.0,0.24748]
[1741971848367,8e-07,84856.0,84855.0,0.396]
[1741971849838,8e-07,84856.0,84855.0,0.24748]
[1741971850039,8e-07,84856.0,84855.0,0.2458168]
[1741971850248,8e-07,84856.0,84855.0,0.235696]
[1741971850598,0.0010008,84856.0,84855.0,0.25248]
[1741971851069,8e-07,84856.0,84855.0,0.24748]
[1741971851279,8e-07,84856.0,84855.0,0.25148]
[1741971852809,6e-07,84856.0,84855.0,0.4]
[1741971853710,6e-07,84856.0,84855.0,0.396]
[1741971853954,0.01454085,84887.0,84868.0,0.247443]
[1741971854158,0.01355715,84881.0,84868.0,0.246443]
[1741971855165,0.01355715,84881.0,84868.0,0.24653624]
[1741971855380,0.01355715,84881.0,84868.0,0.24953624]
[1741971856413,0.01454085,84888.0,84868.0,0.24953624]
[1741971856616,0.02816516,84888.0,84868.0,0.24953624]
[1741971857285,0.01454085,84885.0,84868.0,0.24953624]
[1741971857592,0.01454085,84885.0,84868.0,0.24653624]
[1741971857733,0.01454085,84883.0,84868.0,0.24653624]
[1741971857929,0.01454085,84883.0,84868.0,0.24953624]
[1741971858135,0.56231965,84869.0,84868.0,0.00309324]
[1741971858913,0.31488065,84869.0,84868.0,0.00309324]
[1741971859105,0.56231965,84869.0,84868.0,0.00309324]
[1741971859311,0.0003398,84869.0,84868.0,0.01487624]
[1741971859507,0.0003398,84869.0,84868.0,0.25053624]
[1741971859655,0.0003398,84869.0,84868.0,0.24753624]
[1741971860062,0.0003398,84869.0,84868.0,0.23456744]
[1741971860259,0.0003398,84869.0,84868.0,0.24635044]
[1741971860460,0.0003398,84869.0,84868.0,0.24435044]
[1741971860862,0.0013398,84869.0,84868.0,0.24435044]
[1741971861281,0.16906447,84898.0,84895.0,0.235585]
[1741971861282,0.0479,84896.0,84895.0,0.235585]
[1741971861550,0.3,84895.0,84892.0,0.23559]
[1741971861761,0.01178,84889.0,84850.0,0.0801]
[1741971861968,0.011781,84878.0,84872.0,0.247425]
[1741971862177,0.25016585,84881.0,84876.0,0.011781]
[1741971862391,0.31454085,84881.0,84876.0,0.011781]
[1741971862603,0.01454085,84880.0,84878.0,0.23563]
[1741971862824,0.3,84881.0,84880.0,0.247407]
[1741971863450,0.31454085,84883.0,84881.0,0.235623]
[1741971863675,0.3,84875.0,84872.0,0.00010306]
[1741971863934,0.3,84873.0,84872.0,0.00010306]
[1741971864183,0.3,84873.0,84872.0,0.24753306]
[1741971864866,0.002,84881.0,84880.0,0.247407]
[1741971865361,0.01454085,84880.0,84879.0,0.235629]
[1741971865543,0.01654085,84881.0,84880.0,0.247407]
[1741971865544,0.002,84881.0,84880.0,0.247407]
[1741971866695,0.235588,84894.0,84887.0,0.247387]
[1741971866963,0.01178,84884.0,84878.0,0.235629]
[1741971867167,0.31454085,84885.0,84882.0,0.235618]
[1741971867418,0.01454085,84886.0,84883.0,0.235617]
[1741971867595,0.01454085,84886.0,84885.0,0.235612]
[1741971867796,0.01454085,84886.0,84885.0,0.246392]
[1741971867997,0.01454085,84886.0,84883.0,0.235617]
[1741971868203,0.01454085,84886.0,84885.0,0.235612]
[1741971868543,0.01654085,84886.0,84885.0,0.247392]
[1741971868826,0.03856368,84886.0,84885.0,0.247392]
[1741971869243,0.02402283,84886.0,84885.0,0.247392]
[1741971869884,0.02202283,84886.0,84885.0,0.247392]
[1741971870241,0.00100083,84886.0,84885.0,0.247392]
[1741971870507,8.3e-07,84886.0,84885.0,0.247392]
[1741971870849,0.06610183,84912.0,84911.0,0.247317]
[1741971871504,0.0003398,84920.0,84919.0,0.247293]
[1741971871871,0.0003398,84920.0,84916.0,0.011776]
[1741971871872,0.0003398,84920.0,84917.0,0.235523]
[1741971872070,0.0003398,84920.0,84918.0,0.23552]
[1741971872220,0.30075345,84920.0,84919.0,0.235518]
[1741971872422,0.3152943,84920.0,84919.0,0.247293]
[1741971872748,0.3152943,84920.0,84918.0,0.23552]
[1741971873160,0.0152943,84920.0,84917.0,0.235523]
[1741971873360,0.011777,84909.0,84903.0,0.011778]
[1741971873502,0.01454085,84908.0,84906.0,0.235552]
[1741971873706,0.31454085,84915.0,84913.0,0.235531]
[1741971874021,0.3,84910.0,84906.0,0.235554]
[1741971874217,0.23554,84911.0,84906.0,0.235554]
[1741971874424,0.3,84910.0,84906.0,0.235554]
[1741971874826,0.3,84910.0,84907.0,0.235551]
[1741971875066,0.23554,84911.0,84907.0,0.235551]
[1741971875627,0.01454085,84911.0,84908.0,0.235546]
[1741971876466,0.011777,84911.0,84905.0,0.247334]
[1741971876664,0.25007985,84912.0,84909.0,0.235545]
[1741971876922,0.25007985,84912.0,84908.0,0.235548]
[1741971877295,0.23554,84911.0,84908.0,0.235548]
[1741971877499,0.011777,84908.0,84903.0,0.235561]
[1741971877701,0.235557,84905.0,84901.0,0.235567]
[1741971877900,0.01454085,84902.0,84896.0,0.011779]
[1741971878119,0.011778,84897.0,84880.0,0.14768]
[1741971878293,0.011778,84897.0,84860.0,0.29334887]
[1741971878294,0.235612,84886.0,84873.0,0.011782]
[1741971878515,0.01454085,84896.0,84890.0,0.247375]
[1741971878714,0.31454085,84896.0,84894.0,0.235587]
[1741971878914,0.31454085,84896.0,84891.0,0.235596]
[1741971879119,0.01454085,84894.0,84891.0,0.235596]
[1741971879464,0.01454085,84892.0,84889.0,0.01178]
[1741971879624,0.235599,84890.0,84886.0,0.235608]
[1741971879822,0.235599,84890.0,84882.0,0.011781]
[1741971879823,0.02632085,84889.0,84882.0,0.011781]
[1741971880053,0.235599,84890.0,84886.0,0.235608]
[1741971880210,0.25013985,84890.0,84886.0,0.235608]
[1741971880411,0.01454085,84888.0,84886.0,0.235608]
[1741971880625,0.01454085,84888.0,84884.0,0.247393]
[1741971880823,0.25014785,84888.0,84885.0,0.235612]
[1741971881027,0.01454085,84886.0,84884.0,0.247395]
[1741971881258,0.247382,84889.0,84885.0,0.235612]
[1741971881465,0.0003398,84920.0,84885.0,0.235612]
[1741971881466,0.01454085,84887.0,84886.0,0.23561]
[1741971881873,0.01454085,84892.0,84888.0,0.235604]
[1741971882067,0.01454085,84892.0,84888.0,0.01178]
[1741971882182,0.01454085,84892.0,84890.0,0.235596]
[1741971882384,0.23561,84886.0,84873.0,0.011782]
[1741971882632,0.75982039,84886.0,84843.0,0.0497699]
[1741971882783,0.75982039,84886.0,84866.0,0.011783]
[1741971882991,0.73099532,84886.0,84856.0,0.011784]
[1741971883189,0.80899532,84886.0,84861.0,0.011783]
[1741971883449,0.80899532,84886.0,84863.0,0.011783]
[1741971883628,0.01454085,84871.0,84865.0,0.011783]
[1741971883827,0.01454085,84869.0,84867.0,0.235662]
[1741971884472,0.01359038,84869.0,84868.0,0.2358299]
[1741971884683,0.25019785,84869.0,84868.0,0.0001699]
[1741971885481,0.26297985,84869.0,84868.0,0.0001699]
[1741971886228,0.56297985,84869.0,84868.0,0.0001699]
[1741971886412,0.57641294,84869.0,84868.0,0.0001699]
[1741971886608,0.93502166,84869.0,84868.0,0.0001699]
[1741971887340,1.01352166,84869.0,84868.0,9e-07]
[1741971887738,1.04086663,84869.0,84868.0,9e-07]
[1741971888437,1.04086663,84869.0,84843.0,0.0001699]
[1741971888438,0.547512,84844.0,84843.0,0.0001699]
[1741971888597,0.56205285,84844.0,84843.0,0.0001699]
[1741971889222,0.3,84841.0,84837.0,0.235745]
[1741971889432,0.01454085,84840.0,84837.0,0.235745]
[1741971889639,0.01454085,84840.0,84837.0,0.23584806]
[1741971889922,0.01454085,84838.0,84837.0,0.23584806]
[1741971890282,0.01454085,84838.0,84837.0,0.24763506]
[1741971890654,0.31454085,84839.0,84838.0,0.011787]
[1741971890837,0.01554085,84844.0,84843.0,0.247515]
[1741971891041,0.01454085,84843.0,84842.0,0.235731]
[1741971891269,0.01454085,84844.0,84841.0,0.247519]
[1741971891469,0.3,84845.0,84841.0,0.235733]
[1741971891874,0.46906447,84849.0,84848.0,0.2475]
[1741971892073,0.16906447,84849.0,84848.0,0.2475]
[1741971893626,0.16906447,84849.0,84848.0,0.2465]
[1741971894402,0.01454085,84862.0,84856.0,0.011784]
[1741971894611,0.01454085,84862.0,84860.0,0.235682]
[1741971894810,0.01454085,84862.0,84855.0,0.235696]
[1741971894811,0.247471,84858.0,84852.0,0.011785]
[1741971895019,0.24748,84855.0,84851.0,0.235706]
[1741971895256,0.3,84863.0,84855.0,0.011784]
[1741971895590,0.01454085,84862.0,84859.0,0.235684]
[1741971895788,0.02632385,84862.0,84855.0,0.247478]
[1741971895965,0.01454085,84858.0,84855.0,0.247478]
[1741971896176,0.31454085,84858.0,84855.0,0.235694]
[1741971896373,0.31454085,84858.0,84856.0,0.213693]
[1741971896566,0.55022885,84858.0,84855.0,0.235694]
[1741971896750,0.31454085,84858.0,84857.0,0.247474]
[1741971897155,0.31454085,84863.0,84860.0,0.235679]
[1741971897378,0.31454085,84863.0,84856.0,0.011784]
[1741971897892,0.31454085,84863.0,84853.0,0.2357]
[1741971897893,0.01454085,84858.0,84853.0,0.2357]
[1741971898197,0.235691,84857.0,84853.0,0.2357]
[1741971898596,0.011786,84846.0,84840.0,0.011786]
[1741971898797,0.235714,84849.0,84846.0,0.23572]
[1741971898948,0.235726,84845.0,84842.0,0.23573]
[1741971899298,0.235713,84849.0,84842.0,0.011786]
[1741971899511,0.23571,84850.0,84845.0,0.011786]
[1741971899721,0.01454085,84852.0,84846.0,0.011786]
[1741971899953,0.02632585,84852.0,84846.0,0.011786]
[1741971900071,0.235735,84841.0,84837.0,0.00010306]
[1741971900275,0.01454085,84842.0,84840.0,0.235736]
[1741971900471,0.01454085,84843.0,84840.0,0.247522]
[1741971900872,0.01454085,84843.0,84840.0,0.235736]
[1741971901076,0.3,84844.0,84842.0,0.247518]
[1741971901194,0.3,84844.0,84843.0,0.247515]
[1741971902024,0.01454085,84850.0,84849.0,0.235711]
[1741971902431,0.01454085,84850.0,84849.0,0.247496]
[1741971902793,0.03798125,84851.0,84850.0,0.247495]
[1741971902992,0.01454085,84851.0,84850.0,0.247495]
[1741971903419,0.01454085,84851.0,84847.0,0.2475]
[1741971903420,0.01454085,84851.0,84847.0,0.225501]
[1741971903691,0.3,84849.0,84847.0,0.225501]
[1741971903837,0.3,84849.0,84843.0,0.001]
[1741971903838,0.011785,84847.0,84843.0,0.001]
[1741971904051,0.247512,84844.0,84843.0,0.001]
[1741971904316,0.26205285,84844.0,84843.0,0.001]
[1741971904447,0.01454085,84844.0,84843.0,0.236729]
[1741971904662,0.01454085,84844.0,84843.0,0.248515]
[1741971904863,0.01454085,84844.0,84843.0,0.247515]
[1741971905372,0.3,84847.0,84843.0,0.247515]
[1741971905373,0.31454085,84847.0,84846.0,0.247507]
[1741971905684,0.3,84847.0,84846.0,0.247507]
[1741971905882,0.02331279,84855.0,84854.0,0.247482]
[1741971906061,0.0003392,84856.0,84855.0,0.24748]
[1741971907933,0.0003392,84856.0,84855.0,0.24848]
[1741971908091,0.01328437,84869.0,84859.0,0.011784]
[1741971908317,2e-07,84871.0,84870.0,0.547436]
[1741971908501,2e-07,84871.0,84870.0,0.546836]
[1741971909573,2e-07,84871.0,84870.0,0.54693906]
[1741971910221,2e-07,84871.0,84870.0,0.59693906]
[1741971910414,2e-07,84871.0,84870.0,0.54693906]
[1741971910620,2e-07,84871.0,84870.0,0.59593906]
[1741971910808,0.2358568,84920.0,84919.0,0.247293]
[1741971910809,0.0003398,84920.0,84919.0,0.247293]
[1741971912086,0.00075345,84920.0,84919.0,0.247293]
[1741971912286,0.00075345,84920.0,84919.0,0.248293]
[1741971914295,0.00075345,84920.0,84919.0,0.247293]
[1741971914544,0.00075345,84920.0,84919.0,0.249293]
[1741971915042,0.00075345,84920.0,84919.0,0.247293]
[1741971915563,0.00075345,84920.0,84919.0,0.003]
[1741971915895,0.00075345,84920.0,84919.0,0.014775]
[1741971916742,0.01252845,84920.0,84919.0,0.003]
[1741971916900,0.2625843,84920.0,84919.0,0.003]
[1741971917101,0.5625843,84920.0,84919.0,0.003]
[1741971917502,0.3152943,84920.0,84919.0,0.003]
[1741971917703,0.30075345,84920.0,84919.0,0.011775]
[1741971918274,0.30075345,84920.0,84914.0,0.23553]
[1741971918275,0.25006385,84918.0,84914.0,0.247307]
[1741971918519,0.26183985,84918.0,84908.0,0.235546]
[1741971918713,0.011777,84909.0,84904.0,0.011778]
[1741971918885,0.247322,84910.0,84905.0,0.011777]
[1741971919111,0.01454085,84911.0,84907.0,0.247328]
[1741971919308,0.01454085,84912.0,84909.0,0.247321]
[1741971919521,0.01454085,84912.0,84893.0,0.353384]
[1741971919522,0.00075345,84920.0,84919.0,0.011775]
[1741971920436,0.00075345,84920.0,84915.0,0.247303]
[1741971920437,0.011776,84916.0,84910.0,0.011777]
[1741971920587,0.01454085,84917.0,84912.0,0.011776]
[1741971920791,0.235534,84914.0,84909.0,0.235545]
[1741971920997,0.235562,84904.0,84900.0,0.23557]
[1741971921369,0.235556,84906.0,84901.0,0.235568]
[1741971921370,0.3,84903.0,84901.0,0.235568]
[1741971922403,0.55009585,84906.0,84903.0,0.235559]
[1741971922604,0.55009585,84906.0,84902.0,0.247343]
[1741971922848,0.31454085,84906.0,84904.0,0.247336]
[1741971923049,0.01454085,84912.0,84909.0,0.235544]
[1741971923203,0.01454085,84912.0,84903.0,0.24734]
[1741971923204,0.0218337,84905.0,84903.0,0.24734]